[Event "Moscow Open-F 2019"]
[Site "Moscow"]
[Date "2019.01.31"]
[Round "7"]
[White "Jaiswal, Rupesh"]
[Black "Indzhiev, Aldar"]
[Result "1-0"]
[ECO "A46"]
[WhiteElo "2141"]
[BlackElo "2218"]
[Annotator "NA"]
[PlyCount "141"]
[EventDate "2019.01.26"]
[EventType "swiss"]
[EventCountry "RUS"]
[SourceTitle "playchess.com"]
[Source "ChessBase"]
[SourceQuality "1"]
[TimeControl "40/5400+30:1800+30"]

1. d4 Nf6 2. Nf3 e6 3. Bf4 b6 4. e3 Bb7 5. Bd3 Be7 6. h3 Ne4 7. Nbd2 f5 8. Bxe4 fxe4 9. Ng5 Bxg5 10. Qh5+ {Double Attack} g6 11. Qxg5 Qxg5 12. Bxg5 O-O 13. h4 Kg7 14. Bf4 d6 15. h5 gxh5 16. Rxh5 Rf5 17. Rh4 Nd7 18. O-O-O h5 19. f3 Nf6 20. g4 Rxf4 (20... Ra5 $16) 21. exf4 e3 22. Ne4 $1 Nxe4 23. fxe4 hxg4 24. Rxg4+ Kf6 {[#]} 25. f5 $1 exf5 26. Rf1 e2 27. Rxf5+ Ke6 28. Rg6+ Kd7 29. Rg7+ Ke6 30. Kd2 Bxe4 31. Rff7 Kd5 32. c3 ({Don't take} 32. Kxe2 Bxc2 33. Rxc7 Re8+ 34. Kd2 Be4 $18) 32... Rh8 33. Kxe2 c5 34. Rg5+ Kc4 35. dxc5 {[%emt 1:19:02]} bxc5 {[%emt 1:01:34]} 36. Rxa7 {[%emt 0:01:33]} Rh2+ {[%emt 0:00:08]} 37. Ke3 {[%emt 0:01:00]} Bb1 {[%emt 0:02:23]} (37... d5 $142 38. Ra4+ Kb5) 38. Rg4+ {[%emt 0:01:56]} Kd5 $18 {[%emt 0:00:42]} 39. Rb7 {[%emt 0:05:54]} Bxa2 {[%emt 0:00:32]} 40. Rb6 {[%emt 0:00:58]} Rh3+ {[%emt 0:02:53]} 41. Kf4 {[%emt 0:31:01]} Rh6 {[%emt 0:31:13]} 42. Rg1 {[%emt 0:02:54]} Rf6+ {[%emt 0:03:45]} 43. Kg5 {[%emt 0:01:00]} Rf2 {[%emt 0:00:09]} 44. Ra1 {[%emt 0:00:56]} Bc4 {[%emt 0:00:56]} 45. Rd1+ {[%emt 0:00:49]} Ke5 {[%emt 0:00:34]} 46. Rdxd6 {[%emt 0:03:34]} Rg2+ {[%emt 0:00:03]} 47. Kh4 {[%emt 0:00:40]} Bb3 {[%emt 0:00:07]} 48. Rg6 {[%emt 0:01:26]} Rxb2 {[%emt 0:03:27]} 49. Rg5+ {[%emt 0:01:06]} Kf4 {[%emt 0:00:10]} 50. Rf6+ {[%emt 0:01:01]} Ke4 {[%emt 0:00:07]} 51. Rxc5 {[%emt 0:00:37]} Rg2 {[%emt 0:00:30]} 52. Rd6 {[%emt 0:01:06]} Bc2 {[%emt 0:01:50]} 53. Rg5 {[%emt 0:01:23]} Rf2 {[%emt 0:03:34]} 54. Rd4+ {[%emt 0:00:55]} Ke3 {[%emt 0:00:22]} 55. Re5+ {[%emt 0:01:35]} Kf3 {[%emt 0:00:02]} 56. Kg5 {[%emt 0:00:49]} Rg2+ {[%emt 0:00:11]} 57. Kf6 {[%emt 0:00:14]} Rg6+ {[%emt 0:00:05]} 58. Ke7 {[%emt 0:00:12]} Rc6 {[%emt 0:00:04]} 59. c4 {[%emt 0:00:24]} Ba4 {[%emt 0:00:52]} 60. c5 {[%emt 0:00:26]} Bb5 {[%emt 0:00:02]} 61. Rd6 {[%emt 0:00:29]} Rc8 {[%emt 0:01:42]} 62. Rd8 {[%emt 0:02:02]} Rc6 {[%emt 0:00:52]} 63. Rf8+ {[%emt 0:01:00]} Kg4 {[%emt 0:00:09]} 64. Rf6 {[%emt 0:00:28]} Rc8 {[%emt 0:00:03]} 65. Rb6 {[%emt 0:00:13]} Kf4 {[%emt 0:00:32]} 66. Rxb5 {[%emt 0:00:39]} Kxe5 {[%emt 0:00:40]} 67. c6+ {[%emt 0:00:05]} Kd4 {[%emt 0:00:07]} 68. Kd7 {[%emt 0:00:05]} Rh8 {[%emt 0:00:34]} 69. c7 {[%emt 0:00:11]} Kc4 {[%emt 0:00:02]} 70. Re5 {[%emt 0:00:13]} Kd4 {[%emt 0:00:32]} 71. Re8 {[%emt 0:00:11]} 1-0

[Event "Moscow Open-F 2019"]
[Site "Moscow"]
[Date "2019.01.31"]
[Round "7"]
[White "Volobuev, Vladimir"]
[Black "Matyunin, Maxim"]
[Result "1-0"]
[ECO "C02"]
[WhiteElo "1954"]
[BlackElo "2218"]
[Annotator "NA"]
[PlyCount "83"]
[EventDate "2019.01.26"]
[EventType "swiss"]
[EventCountry "RUS"]
[SourceTitle "playchess.com"]
[Source "ChessBase"]
[SourceQuality "1"]
[TimeControl "40/5400+30:1800+30"]

1. e4 {[%emt 0:30:31]} e6 {[%emt 0:00:00]} 2. d4 {[%emt 0:00:15]} d5 {[%emt 0:00:00]} 3. e5 {[%emt 0:00:48]} c5 {[%emt 0:00:00]} 4. c3 {[%emt 0:00:01]} Qb6 {[%emt 0:00:00]} 5. Nf3 {[%emt 0:00:05]} Bd7 {[%emt 0:00:25]} 6. Bd3 {[%emt 0:02:02]} Bb5 {[%emt 0:00:07]} 7. O-O $146 {[%emt 0:00:20]} ({Predecessor:} 7. dxc5 Bxc5 8. b4 Bxd3 9. Qxd3 Be7 10. O-O {1-0 (42) Shabalov,A (2623)-Volkov,S (2630) playchess.com INT 2004}) 7... Bxd3 {[%emt 0:00:09]} 8. Qxd3 {[%emt 0:00:05]} Nc6 {[%emt 0:00:06]} 9. dxc5 {[%emt 0:02:16]} Bxc5 {[%emt 0:00:46]} 10. b4 {[%emt 0:00:32] C02: French: Advance Variation} Be7 {[%emt 0:00:07]} 11. a4 {[%emt 0:02:48]} Rc8 {[%emt 0:09:21]} 12. Na3 {[%emt 0:03:12]} f6 {[%emt 0:07:39]} ({Predecessor:} 12... Qd8 13. Be3 Nh6 14. Bxh6 gxh6 15. Qe3 Bf8 16. c4 {1-0 (42) Shabalov,A (2623)-Volkov,S (2630) playchess.com INT 2004}) 13. Bf4 {[%emt 0:11:03]} fxe5 {[%emt 0:03:08]} 14. Nxe5 {[%emt 0:01:48]} Nxe5 {[%emt 0:03:38]} 15. Bxe5 {[%emt 0:00:10]} Nf6 {[%emt 0:00:04]} 16. a5 {[%emt 0:15:59]} Qc6 {[%emt 0:01:30]} (16... Qd8 $16) 17. Nb5 {[%emt 0:02:12]} a6 {[%emt 0:06:29] [#]} 18. Nd4 {[%emt 0:01:02]} (18. Na7 $1 $18 {[%cal Ra7c6]} Qc4 19. Qh3) 18... Qd7 {[%emt 0:07:43]} (18... Qxc3 $14 19. Qxc3 Rxc3) 19. f3 {[%emt 0:00:21]} O-O {[%emt 0:01:21]} 20. Rfe1 {[%emt 0:00:15]} Rfe8 {[%emt 0:00:10]} 21. Ra2 {[%emt 0:01:58]} Rc4 {[%emt 0:09:39]} 22. Rae2 {[%emt 0:01:10]} Rec8 {[%emt 0:00:03]} 23. Nxe6 {[%emt 0:03:49]} Qxe6 $2 {[%emt 0:14:16]} (23... d4 {keeps fighting.}) 24. Bxf6 {[%emt 0:00:06]} Qxf6 {[%emt 0:00:04]} 25. Rxe7 $18 {[%emt 0:01:58]} Rxc3 {[%emt 0:09:06]} 26. Qxd5+ {[%emt 0:02:13]} Kf8 {[%emt 0:00:03]} 27. Qd7 {[%emt 0:02:33]} Qg6 {[%emt 0:00:14]} 28. R7e6 {[%emt 0:01:42]} Qh5 {[%emt 0:00:35]} 29. Qxb7 {[%emt 0:05:25]} Rc1 {[%emt 0:02:45]} 30. Qxa6 {[%emt 0:02:56]} Qd5 {[%emt 0:00:27]} 31. Qe2 {[%emt 0:01:47]} Qd4+ {[%emt 0:03:00]} 32. Kh1 {[%emt 0:00:45]} Rxe1+ {[%emt 0:00:32]} 33. Qxe1 {[%emt 0:00:12]} Qb2 {[%emt 0:00:25]} 34. Qh4 {[%emt 0:03:38]} Qd2 {[%emt 0:06:01]} 35. Qe7+ {[%emt 0:00:38]} Kg8 {[%emt 0:00:02]} 36. Re1 {[%emt 0:00:31]} h6 {[%emt 0:00:05]} 37. h3 {[%emt 0:00:25]} Rc2 {[%emt 0:00:53]} 38. Qe8+ {[%emt 0:00:17]} Kh7 {[%emt 0:00:03]} 39. Qe4+ {[%emt 0:00:19]} Kg8 {[%emt 0:00:02]} 40. f4 {[%emt 0:00:33]} Ra2 {[%emt 0:01:37]} 41. f5 {[%emt 0:30:23]} g5 {[%emt 0:31:17]} 42. Qe8+ {[%emt 0:00:21]} 1-0

[Event "Moscow Open-F 2019"]
[Site "Moscow"]
[Date "2019.01.31"]
[Round "7"]
[White "Dziov, Igor"]
[Black "Derevianchenko, Ilia"]
[Result "0-1"]
[ECO "B00"]
[WhiteElo "1904"]
[BlackElo "2339"]
[Annotator "NA RC"]
[PlyCount "88"]
[EventDate "2019.01.26"]
[EventType "swiss"]
[EventCountry "RUS"]
[SourceTitle "playchess.com"]
[Source "ChessBase"]
[SourceQuality "1"]
[TimeControl "40/5400+30:1800+30"]

{[%evp 8,87,89,67,72,15,17,15,32767,1,32767,-16,26,-72,-73,-67,-54,-99,-91,32767,-104,32767,-87,32767,32767,-139,0,32767,-385,-635,-625,-648,-623,-574,-586,32767,32767,32767,32767,32767,32767,32767,32767,32767,32767,32767,-773,32767,-810,-774,-820,32767,32767,32767,32767,-868,-929,-899,32767,-960,-989,-1025,-1020,-999,-1071,-1028,-966,-1174,-1342,-1176,-1391,-1322,-1530,-1479,32767,32767,-29990,-29993,32767,32767,32767,-29997]} 1. e4 {[%emt 0:02:34]} d6 {[%emt 0:14:15]} 2. d4 {[%emt 0:00:09]} g6 {[%emt 0:00:30]} 3. Be3 {[%emt 0:00:17]} Bg7 {[%emt 0:00:07]} 4. Qd2 {[%emt 0:00:19]} e5 {[%emt 0:00:51]} 5. Ne2 {[%emt 0:00:25]} Nc6 {[%emt 0:00:47]} 6. d5 {[%emt 0:01:10]} (6. Nbc3 $16) 6... Nce7 {[%emt 0:00:16]} 7. f3 {[%emt 0:01:25]} f5 {[%emt 0:00:19]} 8. Nbc3 {[%emt 0:00:48]} Nf6 {[%emt 0:00:07]} 9. h3 {[%emt 0:01:52]} f4 {[%emt 0:01:40]} (9... b5 $15) 10. Nxf4 {[%emt 0:02:12]} (10. Bf2 $14) 10... exf4 {[%emt 0:00:18]} 11. Bxf4 {[%emt 0:00:04]} O-O {[%emt 0:04:52]} 12. g4 {[%emt 0:01:48]} Nd7 {[%emt 0:02:13]} 13. O-O-O {[%emt 0:03:31]} Ne5 {[%emt 0:00:07]} 14. Be2 {[%emt 0:00:19]} Rf7 {[%emt 0:01:00]} 15. Nb5 {[%emt 0:12:59] [#]} Kh8 {[%emt 0:05:15]} (15... Nxf3 $1 $17 {[%mdl 512]} 16. Bxf3 a6 17. Nxd6 cxd6) 16. h4 {[%emt 0:05:23] [#]} (16. Rhf1 $15) 16... Ng8 {[%emt 0:01:19]} (16... Nxf3 $1 $17 {[%mdl 512]} 17. Bxf3 Qf8) 17. h5 {[%emt 0:01:25] [#]} Rxf4 $1 {[%emt 0:01:02]} 18. h6 $2 {[%emt 0:03:10]} (18. Qxf4 $2 {too greedy.} Bh6 $19) (18. g5 Qxg5 19. Nxc7) 18... Bf6 {[%emt 0:01:13]} 19. Kb1 {[%emt 0:06:19]} Bg5 {[%emt 0:00:36]} 20. Qc3 {[%emt 0:00:14]} Rf7 {[%emt 0:00:49]} 21. Rdf1 {[%emt 0:01:04]} a6 {[%emt 0:01:40]} 22. Nd4 {[%emt 0:00:21]} Qf6 {[%emt 0:04:08]} 23. a3 {[%emt 0:03:44]} Bxh6 {[%emt 0:01:01]} 24. Rh2 {[%emt 0:01:09]} Bf4 {[%emt 0:00:38]} 25. Rh3 {[%emt 0:00:29]} c5 {[%emt 0:01:06]} 26. Nb3 {[%emt 0:03:17]} b5 {[%emt 0:04:13]} 27. Rfh1 {[%emt 0:00:39] [#]} Nc4 $1 {[%emt 0:00:37]} 28. Qxf6+ {[%emt 0:01:51]} Nxf6 {[%emt 0:00:02]} 29. Bxc4 {[%emt 0:00:45]} bxc4 {[%emt 0:00:03]} 30. Na5 {[%emt 0:00:07]} c3 {[%emt 0:00:25]} 31. b3 {[%emt 0:00:50]} Kg7 {[%emt 0:01:22]} 32. Nc4 {[%emt 0:00:43]} h5 {[%emt 0:00:25]} 33. Rg1 {[%emt 0:02:29]} hxg4 {[%emt 0:00:15]} 34. fxg4 {[%emt 0:00:14]} Nxe4 {[%emt 0:00:08]} 35. Ka2 {[%emt 0:02:09]} Bb7 {[%emt 0:01:54]} 36. Rgh1 {[%emt 0:01:06]} Bxd5 {[%emt 0:00:24]} 37. Rh7+ {[%emt 0:00:46]} Kf6 {[%emt 0:00:21]} 38. Nb6 {[%emt 0:00:10]} Rxh7 {[%emt 0:00:48]} 39. Rxh7 {[%emt 0:00:11]} Bg8 {[%emt 0:00:07]} 40. Rc7 {[%emt 0:02:42]} Re8 {[%emt 0:00:29]} 41. Ra7 {[%emt 0:30:56]} Nd2 {[%emt 0:32:14]} 42. Rxa6 {[%emt 0:01:14]} Re2 {[%emt 0:00:34]} 43. Nd7+ {[%emt 0:00:41]} Kg5 {[%emt 0:00:20]} 44. Ka1 {[%emt 0:01:51]} Bxb3 {[%emt 0:00:16]} 0-1

[Event "Moscow Open-F 2019"]
[Site "Moscow"]
[Date "2019.01.31"]
[Round "7"]
[White "Bazarov, Vladimir"]
[Black "Khudyakov, Stanislav"]
[Result "1/2-1/2"]
[ECO "C05"]
[WhiteElo "1800"]
[BlackElo "2126"]
[Annotator "NA"]
[PlyCount "107"]
[EventDate "2019.01.26"]
[EventType "swiss"]
[EventCountry "RUS"]
[SourceTitle "playchess.com"]
[Source "ChessBase"]
[SourceQuality "1"]
[TimeControl "40/5400+30:1800+30"]

1. e4 {[%emt 0:02:53]} e6 {[%emt 0:00:00]} 2. d4 {[%emt 0:00:16]} d5 {[%emt 0:00:00]} 3. Nd2 {[%emt 0:00:56]} Nf6 {[%emt 0:01:00]} 4. e5 {[%emt 0:00:12]} Nfd7 {[%emt 0:00:06]} 5. Bd3 {[%emt 0:00:51]} c5 {[%emt 0:00:05]} 6. c3 {[%emt 0:00:08] LiveBook: 7779 Games} Nc6 {[%emt 0:00:05]} 7. Ndf3 {[%emt 0:00:40]} Be7 {[%emt 0:11:10]} 8. Ne2 {[%emt 0:00:58]} O-O {[%emt 0:01:44]} 9. O-O {[%emt 0:00:12]} f6 {[%emt 0:05:04]} 10. Nf4 {[%emt 0:07:16]} ({White should try} 10. exf6 $14 Nxf6 11. Bf4) 10... Ndxe5 $1 {[%emt 0:05:34]} 11. Bxh7+ {[%emt 0:10:07]} Kxh7 {[%emt 0:00:37]} 12. Qc2+ {[%emt 0:00:08]} Kg8 {[%emt 0:01:56]} 13. dxe5 fxe5 {[%emt 0:01:43]} 14. Ng6 {[%emt 0:09:09]} Rf5 {[%emt 0:02:19]} 15. Nxe7+ {[%emt 0:07:08]} Qxe7 {[%emt 0:00:21]} 16. h4 {[%emt 0:01:30]} e4 {[%emt 0:08:27]} 17. Ng5 {[%emt 0:00:39]} Ne5 {[%emt 0:00:35]} 18. f3 {[%emt 0:29:49] [#]} exf3 {[%emt 0:06:17]} (18... Bd7 $1 $19 19. fxe4 Rxf1+ 20. Kxf1 Bb5+ 21. Kg1 Bd3) 19. Bf4 {[%emt 0:02:27]} Nf7 {[%emt 0:03:03]} ({Black should play} 19... fxg2 $17 20. Qxg2 Nf7) 20. Rxf3 {[%emt 0:00:38]} e5 {[%emt 0:25:05]} 21. Bd2 {[%emt 0:00:55]} ({White should play} 21. Re1 $11) 21... e4 {[%emt 0:01:01]} 22. Rxf5 {[%emt 0:00:30]} Bxf5 {[%emt 0:00:05]} 23. Rf1 {[%emt 0:01:32] [#]} Bg6 {[%emt 0:01:54]} (23... Nh6 $142 $1 24. Be3 b6) 24. Nxf7 $17 {[%emt 0:00:57]} Bxf7 {[%emt 0:00:05]} 25. Bg5 {[%emt 0:00:12]} Qd7 {[%emt 0:00:48]} 26. c4 {[%emt 0:03:35]} d4 {[%emt 0:02:35]} 27. Qxe4 {[%emt 0:01:13]} Bxc4 {[%emt 0:00:05]} 28. Rf5 {[%emt 0:02:40]} Re8 {[%emt 0:03:16]} 29. Re5 {[%emt 0:02:17]} Rxe5 {[%emt 0:00:24]} 30. Qxe5 {[%emt 0:00:01]} b6 {[%emt 0:00:25]} 31. a3 {[%emt 0:03:47]} Bf7 {[%emt 0:05:07]} 32. Qe4 {[%emt 0:04:58]} Bd5 {[%emt 0:00:59]} 33. Qe2 {[%emt 0:02:27]} c4 {[%emt 0:04:26]} 34. Bd2 {[%emt 0:00:40]} Qf5 {[%emt 0:00:58]} 35. Bg5 {[%emt 0:01:00]} Bf7 {[%emt 0:03:43]} 36. Qd2 {[%emt 0:03:05]} Qe4 {[%emt 0:00:14]} 37. Kf1 {[%emt 0:01:58]} Bh5 {[%emt 0:01:55]} 38. Kg1 {[%emt 0:00:35]} Kh7 {[%emt 0:01:59]} 39. Kh2 {[%emt 0:00:33]} Be8 {[%emt 0:00:54]} 40. Qf4 {[%emt 0:00:21]} Qd5 {[%emt 0:00:14]} 41. Qf3 {[%emt 0:30:24]} Qe6 {[%emt 0:32:42]} 42. Qf4 {[%emt 0:00:23]} d3 {[%emt 0:00:12]} 43. Qf2 {[%emt 0:00:34]} Bc6 {[%emt 0:00:15]} 44. Bd2 {[%emt 0:00:38]} Qe5+ {[%emt 0:00:43]} 45. Bf4 {[%emt 0:00:12]} Qf6 {[%emt 0:00:21]} 46. Kg1 {[%emt 0:01:00]} b5 {[%emt 0:00:30]} 47. Be3 {[%emt 0:00:22]} Qg6 {[%emt 0:00:34]} 48. Bd2 {[%emt 0:00:53]} Qg4 {[%emt 0:00:32]} 49. Bc3 {[%emt 0:00:18]} a6 {[%emt 0:00:33]} 50. Kh2 {[%emt 0:00:30]} Bd5 {[%emt 0:00:40]} 51. Qg3 {[%emt 0:00:24]} Qd7 {[%emt 0:00:28]} 52. Qg5 {[%emt 0:00:22]} Bb7 {[%emt 0:01:03]} 53. h5 {[%emt 0:01:06]} Be4 {[%emt 0:01:00]} 54. Kg1 {[%emt 0:00:32]} 1/2-1/2

[Event "Moscow Open-F 2019"]
[Site "Moscow"]
[Date "2019.02.01"]
[Round "8"]
[White "Velichko, Arseny"]
[Black "Bazarov, Vladimir"]
[Result "1-0"]
[ECO "D11"]
[WhiteElo "2223"]
[BlackElo "1800"]
[Annotator "ChessBase"]
[PlyCount "143"]
[EventDate "2019.01.26"]
[EventType "swiss"]
[EventCountry "RUS"]
[SourceTitle "playchess.com"]
[Source "ChessBase"]
[SourceQuality "1"]
[TimeControl "40/5400+30:1800+30"]

1. d4 {[%emt 0:00:00]} d5 {[%emt 0:00:00]} 2. c4 {[%emt 0:00:00]} c6 {[%emt 0:00:00]} 3. Nf3 {[%emt 0:00:00]} Nf6 {[%emt 0:00:05]} 4. e3 {[%emt 0:00:00]} Bg4 {[%emt 0:03:29]} 5. Qb3 {[%emt 0:00:07]} Qb6 {[%emt 0:02:34]} 6. Nc3 {[%emt 0:01:05]} dxc4 {[%emt 0:05:02]} 7. Bxc4 {[%emt 0:00:17]} Qxb3 {[%emt 0:00:22]} 8. Bxb3 {[%emt 0:00:38]} e6 {[%emt 0:02:57]} 9. O-O {[%emt 0:03:16]} Nbd7 {[%emt 0:01:23]} 10. e4 {[%emt 0:01:54]} Bb4 {[%emt 0:04:26]} 11. Bc2 {[%emt 0:00:20]} O-O {[%emt 0:08:20]} 12. a3 {[%emt 0:00:37]} Ba5 {[%emt 0:00:47]} 13. Be3 {[%emt 0:00:52]} Rac8 {[%emt 0:05:07]} 14. b4 {[%emt 0:03:42]} Bc7 {[%emt 0:01:40]} 15. h3 {[%emt 0:02:31]} Bxf3 {[%emt 0:02:18]} 16. gxf3 {[%emt 0:00:03]} e5 {[%emt 0:00:54]} 17. Ne2 {[%emt 0:01:04]} Bb6 {[%emt 0:03:58]} 18. f4 {[%emt 0:05:58]} exd4 {[%emt 0:00:56]} 19. Nxd4 {[%emt 0:00:30]} g6 {[%emt 0:01:06]} 20. Rfd1 {[%emt 0:14:54]} c5 {[%emt 0:07:18]} 21. bxc5 {[%emt 0:00:30]} Nxc5 {[%emt 0:00:45]} 22. e5 {[%emt 0:01:06]} Nd5 {[%emt 0:03:28]} 23. Nf5 {[%emt 0:01:57]} Nxe3 {[%emt 0:02:00]} 24. Ne7+ {[%emt 0:00:09]} Kg7 {[%emt 0:00:11]} 25. fxe3 {[%emt 0:00:15]} Rcd8 {[%emt 0:05:20]} 26. Nd5 {[%emt 0:00:25]} Rd7 {[%emt 0:03:59]} 27. Nxb6 {[%emt 0:00:20]} Rxd1+ {[%emt 0:00:37]} 28. Rxd1 {[%emt 0:00:11]} axb6 {[%emt 0:00:03]} 29. Rd4 {[%emt 0:01:15]} Rc8 {[%emt 0:10:37]} 30. Bd1 {[%emt 0:06:30]} Ne6 {[%emt 0:02:21]} 31. Rd3 {[%emt 0:02:53]} Rc1 {[%emt 0:06:59]} 32. Kf2 {[%emt 0:01:01]} Nc5 {[%emt 0:02:56]} 33. Rd4 {[%emt 0:01:18]} b5 {[%emt 0:01:37]} 34. Be2 {[%emt 0:03:56]} Rc3 {[%emt 0:01:38]} 35. Bxb5 {[%emt 0:02:33]} Rxa3 {[%emt 0:00:06]} 36. Kf3 {[%emt 0:00:26]} Rb3 {[%emt 0:00:57]} 37. Bc4 {[%emt 0:00:34]} Rb2 {[%emt 0:01:21]} 38. Rd5 {[%emt 0:00:50]} b6 {[%emt 0:00:16]} 39. Rd6 {[%emt 0:00:23]} Rc2 {[%emt 0:02:46]} 40. Bd5 {[%emt 0:00:37]} Rd2 {[%emt 0:01:04]} 41. h4 {[%emt 0:34:14]} h5 {[%emt 0:30:49]} 42. e4 {[%emt 0:00:24]} Rd3+ {[%emt 0:00:14]} 43. Ke2 {[%emt 0:00:51]} Rd4 44. Kf3 {[%emt 0:07:37]} Rd3+ {[%emt 0:02:22]} 45. Kg2 {[%emt 0:01:20]} Rd2+ {[%emt 0:00:49]} 46. Kf1 {[%emt 0:00:50]} Rd1+ {[%emt 0:00:22]} 47. Ke2 {[%emt 0:00:09]} Rd4 {[%emt 0:00:04]} 48. Rf6 {[%emt 0:06:57]} Nxe4 {[%emt 0:01:09]} 49. Rxf7+ {[%emt 0:00:25]} Kg8 {[%emt 0:03:40]} 50. Be6 {[%emt 0:01:20]} Nc5 {[%emt 0:00:19]} 51. Ba2 {[%emt 0:01:03]} Kh8 {[%emt 0:02:40]} 52. Bb1 {[%emt 0:04:37]} b5 {[%emt 0:01:06]} 53. Bxg6 {[%emt 0:00:19]} b4 {[%emt 0:00:26]} 54. Ke3 {[%emt 0:00:44]} Rc4 {[%emt 0:00:35]} 55. Re7 {[%emt 0:04:29]} b3 {[%emt 0:00:29]} 56. f5 {[%emt 0:00:46]} Rg4 {[%emt 0:00:31]} 57. Re8+ {[%emt 0:01:43]} Kg7 {[%emt 0:00:05]} 58. Bxh5 {[%emt 0:04:28]} b2 {[%emt 0:00:31]} 59. f6+ {[%emt 0:00:53]} Kh7 {[%emt 0:00:44]} 60. Rb8 {[%emt 0:08:09]} Re4+ {[%emt 0:00:16]} 61. Kf3 {[%emt 0:00:22]} Rxe5 {[%emt 0:00:06]} 62. Bg4 {[%emt 0:02:19]} Kg6 {[%emt 0:00:21]} 63. Rxb2 {[%emt 0:00:09]} Kxf6 {[%emt 0:00:04]} 64. Rb6+ {[%emt 0:00:04]} Ne6 {[%emt 0:01:10]} 65. h5 {[%emt 0:00:30]} Kf7 {[%emt 0:00:15]} 66. h6 Nf8 {[%emt 0:00:25]} 67. Kg3 {[%emt 0:01:17]} Kg8 {[%emt 0:01:25]} 68. Kf4 {[%emt 0:00:14]} Re7 {[%emt 0:00:45]} 69. Bf5 {[%emt 0:00:25]} Rc7 {[%emt 0:00:19]} 70. Rb8 {[%emt 0:00:13]} Re7 {[%emt 0:00:42]} 71. h7+ {[%emt 0:00:27]} Kg7 {[%emt 0:00:25]} 72. Rxf8 {[%emt 0:00:13]} 1-0

[Event "Moscow Open-F 2019"]
[Site "Moscow"]
[Date "2019.02.02"]
[Round "9"]
[White "Mamatov, Melis"]
[Black "Tekeyev, Zaur"]
[Result "1/2-1/2"]
[ECO "B32"]
[WhiteElo "2203"]
[BlackElo "2392"]
[Annotator "RC"]
[PlyCount "110"]
[EventDate "2019.01.26"]
[EventType "swiss"]
[EventCountry "RUS"]
[SourceTitle "playchess.com"]
[Source "ChessBase"]
[SourceQuality "1"]
[TimeControl "40/5400+30:1800+30"]

1. e4 {[%emt 0:08:28]} c5 {[%emt 0:00:00]} 2. Nf3 {[%emt 0:00:23]} Nc6 {[%emt 0:00:00]} 3. d4 {[%emt 0:00:13]} cxd4 {[%emt 0:00:00]} 4. Nxd4 {[%emt 0:00:04]} e5 {[%emt 0:00:00]} 5. Nb5 {[%emt 0:00:05]} d6 {[%emt 0:00:05]} 6. g3 {[%emt 0:00:23]} Be7 {[%emt 0:09:36]} 7. Be3 {[%emt 0:04:28]} Nf6 {[%emt 0:06:10]} 8. Bg2 {[%emt 0:00:20]} Be6 {[%emt 0:05:45]} 9. N5c3 {[%emt 0:00:20]} Ng4 {[%emt 0:01:39]} 10. Bc1 {[%emt 0:05:29]} Bg5 {[%emt 0:08:56]} 11. Bxg5 {[%emt 0:11:54]} Qxg5 {[%emt 0:00:50]} 12. Nd2 {[%emt 0:00:41]} O-O {[%emt 0:02:41]} 13. Nf3 {[%emt 0:09:14]} Qd8 {[%emt 0:01:09]} 14. Qd2 {[%emt 0:01:32]} Rc8 {[%emt 0:09:17]} 15. O-O {[%emt 0:02:32]} Qa5 {[%emt 0:09:29]} 16. Rfd1 {[%emt 0:08:53]} Rfd8 {[%emt 0:01:35]} 17. Nd5 {[%emt 0:04:04]} Qxd2 {[%emt 0:03:32]} 18. Rxd2 {[%emt 0:00:10]} Bxd5 {[%emt 0:02:12]} 19. exd5 {[%emt 0:10:34]} Na5 {[%emt 0:00:39]} 20. c3 {[%emt 0:02:11]} g6 {[%emt 0:04:35]} 21. Rdd1 {[%emt 0:05:30]} Nc4 {[%emt 0:09:46]} 22. Rab1 {[%emt 0:01:43]} b5 {[%emt 0:01:19]} 23. Nd2 {[%emt 0:01:35]} f5 {[%emt 0:00:56]} 24. Nxc4 {[%emt 0:01:11]} Rxc4 {[%emt 0:01:51]} 25. Bf1 {[%emt 0:01:40]} Rc5 {[%emt 0:00:17]} 26. a4 {[%emt 0:00:01]} bxa4 {[%emt 0:05:30]} 27. Ra1 {[%emt 0:00:01]} Rb8 {[%emt 0:01:47]} 28. Rd2 {[%emt 0:00:00]} e4 {[%emt 0:03:43]} 29. Rxa4 {[%emt 0:00:14]} a5 {[%emt 0:00:31]} 30. Kg2 {[%emt 0:01:20]} Kg7 {[%emt 0:00:38]} 31. Be2 {[%emt 0:00:39]} Nf6 {[%emt 0:00:35]} 32. f3 {[%emt 0:04:03]} e3 {[%emt 0:01:45]} 33. Rc2 {[%emt 0:01:09]} Rxd5 {[%emt 0:02:06]} 34. b4 {[%emt 0:02:22]} axb4 {[%emt 0:00:48]} 35. cxb4 {[%emt 0:00:00]} Rb7 {[%emt 0:01:13]} 36. b5 {[%emt 0:00:42]} Re5 {[%emt 0:03:09]} 37. Rc6 {[%emt 0:03:26]} Nd5 {[%emt 0:00:47]} 38. Rd4 {[%emt 0:02:06]} f4 {[%emt 0:03:23]} 39. gxf4 {[%emt 0:00:01]} Rf5 {[%emt 0:00:09]} 40. Kg3 {[%emt 0:00:31]} Rbf7 {[%emt 0:00:48]} 41. Bc4 {[%emt 0:35:06]} Nc3 {[%emt 0:30:34]} 42. Bd3 {[%emt 0:01:45]} e2 {[%emt 0:00:43]} 43. Kf2 {[%emt 0:00:16]} Re7 {[%emt 0:00:29]} 44. Be4 {[%emt 0:01:35]} Nxb5 {[%emt 0:00:25]} 45. Rb4 {[%emt 0:01:24]} d5 {[%emt 0:00:35]} 46. Rxb5 {[%emt 0:00:19]} Rxf4 {[%emt 0:00:18]} 47. Rxd5 {[%emt 0:00:45]} Rexe4 {[%emt 0:00:17]} 48. Rc1 {[%emt 0:00:19]} e1=Q+ {[%emt 0:00:57]} 49. Rxe1 {[%emt 0:00:04]} Rxe1 {[%emt 0:00:03]} 50. Kxe1 {[%emt 0:00:07]} Rxf3 {[%emt 0:00:05]} 51. Rd4 {[%emt 0:01:41]} Kf6 {[%emt 0:00:25]} 52. Rh4 {[%emt 0:00:27]} h5 53. Ke2 Kg5 {[%emt 0:01:54]} 54. Rxh5+ {[%emt 0:00:19]} Kxh5 {[%emt 0:00:12]} 55. Kxf3 {[%emt 0:00:01]} Kh4 {[%emt 0:00:02]} 1/2-1/2